[Event "FIDE U16 Olympiad_boards_81-124"]
[Site "Eindhoven, Netherlands"]
[Date "2023.08.13"]
[Round "1.25"]
[White "Coetsee, Dewald"]
[Black "Ramaj, Ergit"]
[Result "0-1"]
[TimeControl "45min+10sec"]
[WhiteElo "1276"]
[BlackElo "2012"]

1. e4 {[%clk 00:45:15]} {[%emt 00:00:05]} e5 {[%clk 00:45:15]} {[%emt
00:00:06]} 2. Nf3 {[%clk 00:45:22]} {[%emt 00:00:02]} Nc6 {[%clk 00:45:23]}
{[%emt 00:00:02]} 3. Bb5 {[%clk 00:45:30]} {[%emt 00:00:02]} a6 {[%clk
00:45:04]} {[%emt 00:00:30]} 4. Ba4 {[%clk 00:45:38]} {[%emt 00:00:01]} Nf6
{[%clk 00:44:50]} {[%emt 00:00:24]} 5. d4 {[%clk 00:45:46]} {[%emt 00:00:02]}
Nxd4 {[%clk 00:33:55]} {[%emt 00:11:05]} 6. Nxd4 {[%clk 00:45:54]} {[%emt
00:00:03]} exd4 {[%clk 00:34:03]} 7. e5 {[%clk 00:46:03]} {[%emt 00:00:01]} Nd5
{[%clk 00:31:38]} {[%emt 00:02:35]} 8. Qxd4 {[%clk 00:45:41]} {[%emt 00:00:31]}
Nb6 {[%clk 00:29:57]} {[%emt 00:01:52]} 9. Bb3 {[%clk 00:44:58]} {[%emt
00:00:54]} d5 {[%clk 00:25:22]} {[%emt 00:04:45]} 10. exd6 {[%clk 00:42:10]}
{[%emt 00:02:57]} Qxd6 {[%clk 00:25:10]} {[%emt 00:00:22]} 11. Be3 {[%clk
00:41:02]} {[%emt 00:01:18]} Qxd4 {[%clk 00:22:11]} {[%emt 00:03:09]} 12. Bxd4
{[%clk 00:41:10]} {[%emt 00:00:02]} Bd6 {[%clk 00:21:51]} {[%emt 00:00:30]} 13.
O-O {[%clk 00:39:46]} {[%emt 00:01:34]} O-O {[%clk 00:21:58]} {[%emt 00:00:04]}
14. Nc3 {[%clk 00:32:57]} {[%emt 00:06:58]} Bf5 {[%clk 00:20:19]} {[%emt
00:01:49]} 15. Rad1 {[%clk 00:31:57]} {[%emt 00:01:10]} Rad8 {[%clk 00:20:00]}
{[%emt 00:00:29]} 16. h3 {[%clk 00:26:48]} {[%emt 00:05:19]} Nd7 {[%clk
00:18:44]} {[%emt 00:01:26]} 17. a4 {[%clk 00:25:13]} {[%emt 00:01:45]} Nc5
{[%clk 00:17:52]} {[%emt 00:01:03]} 18. Bxc5 {[%clk 00:21:15]} {[%emt
00:04:07]} Bxc5 {[%clk 00:18:01]} {[%emt 00:00:02]} 19. Rfe1 {[%clk 00:21:09]}
{[%emt 00:00:15]} Bd6 {[%clk 00:15:25]} {[%emt 00:02:46]} 20. Re3 {[%clk
00:11:10]} {[%emt 00:10:09]} c6 {[%clk 00:14:29]} {[%emt 00:01:07]} 21. Rde1
{[%clk 00:10:53]} {[%emt 00:00:27]} Bb4 {[%clk 00:12:42]} {[%emt 00:01:56]} 22.
Re5 {[%clk 00:10:12]} {[%emt 00:00:51]} Bg6 {[%clk 00:12:31]} {[%emt 00:00:19]}
23. h4 {[%clk 00:08:26]} {[%emt 00:01:58]} Kh8 {[%clk 00:09:59]} {[%emt
00:02:42]} 24. h5 {[%clk 00:06:47]} {[%emt 00:01:49]} f6 {[%clk 00:10:00]}
{[%emt 00:00:09]} 25. hxg6 {[%clk 00:06:56]} fxe5 {[%clk 00:10:06]} {[%emt
00:00:05]} 26. Rxe5 {[%clk 00:06:53]} {[%emt 00:00:12]} Rde8 {[%clk 00:08:33]}
{[%emt 00:01:43]} 27. Rh5 {[%clk 00:06:31]} {[%emt 00:00:32]} Re1+ {[%clk
00:08:19]} {[%emt 00:00:25]} 28. Kh2 {[%clk 00:06:40]} {[%emt 00:00:01]} Bd6+
{[%clk 00:08:27]} 29. f4 {[%clk 00:06:13]} {[%emt 00:00:37]} Bxf4+ {[%clk
00:08:12]} {[%emt 00:00:26]} 30. g3 {[%clk 00:06:21]} {[%emt 00:00:02]} Bh6
{[%clk 00:08:19]} {[%emt 00:00:02]} 31. g4 {[%clk 00:05:06]} {[%emt 00:01:26]}
hxg6 {[%clk 00:08:11]} {[%emt 00:00:17]} 32. Rh3 {[%clk 00:05:07]} {[%emt
00:00:08]} Rf2+ {[%clk 00:06:42]} {[%emt 00:01:39]} 33. Kg3 {[%clk 00:05:11]}
{[%emt 00:00:06]} Re3+ {[%clk 00:06:51]} {[%emt 00:00:02]} 34. Kxf2 {[%clk
00:05:17]} {[%emt 00:00:04]} Rxh3 {[%clk 00:06:59]} {[%emt 00:00:02]} 35. Ne4
{[%clk 00:05:19]} {[%emt 00:00:07]} Bc1 {[%clk 00:03:08]} {[%emt 00:04:01]} 36.
Nd6 {[%clk 00:05:08]} {[%emt 00:00:22]} Rh2+ {[%clk 00:02:43]} {[%emt
00:00:35]} 37. Kg3 {[%clk 00:04:32]} {[%emt 00:00:46]} Re2 {[%clk 00:02:24]}
{[%emt 00:00:29]} 38. Kf3 {[%clk 00:03:18]} {[%emt 00:01:24]} Re3+ {[%clk
00:02:15]} {[%emt 00:00:18]} 39. Kf2 {[%clk 00:03:27]} {[%emt 00:00:02]} Re7
{[%clk 00:02:16]} {[%emt 00:00:08]} 40. Nf7+ {[%clk 00:03:18]} {[%emt
00:00:20]} Kh7 {[%clk 00:02:18]} {[%emt 00:00:07]} 41. g5 {[%clk 00:02:40]}
{[%emt 00:00:49]} Bxb2 {[%clk 00:01:29]} {[%emt 00:01:00]} 42. Kf3 {[%clk
00:02:27]} {[%emt 00:00:23]} Bc1 {[%clk 00:01:06]} {[%emt 00:00:32]} 43. Kg4
{[%clk 00:01:56]} {[%emt 00:00:41]} Re4+ {[%clk 00:01:15]} {[%emt 00:00:01]} 44.
Kf3 {[%emt 00:00:03]} Rb4 {[%clk 00:01:23]} 45. Ke2 {[%clk 00:01:14]} {[%emt
00:01:01]} a5 {[%clk 00:01:06]} {[%emt 00:00:28]} 46. Kd3 {[%clk 00:00:46]}
{[%emt 00:00:37]} Rg4 {[%clk 00:00:51]} {[%emt 00:00:24]} 47. Ne5 {[%clk
00:00:29]} {[%emt 00:00:28]} Rxg5 {[%clk 00:00:55]} {[%emt 00:00:05]} 48. Nc4
{[%clk 00:00:22]} {[%emt 00:00:18]} Bf4 {[%clk 00:00:48]} {[%emt 00:00:17]} 49.
Ke4 {[%clk 00:00:21]} {[%emt 00:00:11]} Bc7 {[%clk 00:00:56]} {[%emt 00:00:03]}
50. Kd3 {[%clk 00:00:20]} {[%emt 00:00:11]} Rf5 {[%clk 00:00:55]} {[%emt
00:00:10]} 51. Ne3 {[%clk 00:00:25]} {[%emt 00:00:05]} Rf8 {[%clk 00:00:51]}
{[%emt 00:00:14]} 52. Ng4 {[%clk 00:00:18]} {[%emt 00:00:17]} Rf4 {[%clk
00:01:00]} {[%emt 00:00:01]} 53. Ne3 {[%clk 00:00:27]} {[%emt 00:00:01]} g5
{[%clk 00:01:05]} {[%emt 00:00:06]} 54. Be6 {[%clk 00:00:31]} {[%emt 00:00:05]}
Rxa4 {[%clk 00:01:09]} {[%emt 00:00:06]} 55. Bf5+ {[%clk 00:00:26]} {[%emt
00:00:14]} g6 {[%clk 00:01:16]} {[%emt 00:00:04]} 56. Be4 {[%clk 00:00:35]}
{[%emt 00:00:01]} Bf4 {[%clk 00:01:10]} {[%emt 00:00:16]} 57. Ng4 {[%clk
00:00:33]} {[%emt 00:00:13]} Kg7 {[%clk 00:01:19]} 58. Nf2 {[%clk 00:00:37]}
{[%emt 00:00:06]} Be5 {[%clk 00:00:55]} {[%emt 00:00:34]} 59. Ng4 {[%clk
00:00:42]} {[%emt 00:00:05]} Ra3+ {[%clk 00:00:52]} {[%emt 00:00:13]} 60. Ke2
{[%clk 00:00:35]} {[%emt 00:00:16]} Bd4 {[%clk 00:01:02]} {[%emt 00:00:01]} 61.
Bd3 {[%clk 00:00:44]} {[%emt 00:00:01]} a4 {[%clk 00:01:06]} {[%emt 00:00:06]}
62. Nh2 {[%clk 00:00:52]} {[%emt 00:00:02]} Rxd3 {[%clk 00:00:43]} {[%emt
00:00:32]} 63. Kxd3 {[%clk 00:00:56]} {[%emt 00:00:07]} a3 {[%clk 00:00:53]} 64.
Ke2 {[%emt 00:00:05]} 0-1

[Event "FIDE U16 Olympiad_boards_81-124"]
[Site "Eindhoven, Netherlands"]
[Date "2023.08.13"]
[Round "1.26"]
[White "Kosta, Kelvin"]
[Black "Strong, Davida"]
[Result "1-0"]
[TimeControl "45min+10sec"]
[WhiteElo "1931"]
[BlackElo "1379"]

1. e4 {[%clk 00:45:10]} {[%emt 00:00:09]} e6 {[%clk 00:45:18]} {[%emt
00:00:03]} 2. d4 {[%clk 00:45:17]} {[%emt 00:00:03]} d5 {[%clk 00:45:26]}
{[%emt 00:00:02]} 3. e5 {[%clk 00:45:21]} {[%emt 00:00:06]} c5 {[%clk
00:45:34]} {[%emt 00:00:02]} 4. c3 {[%clk 00:45:26]} {[%emt 00:00:05]} Nc6
{[%clk 00:45:40]} {[%emt 00:00:04]} 5. Nf3 {[%clk 00:45:31]} {[%emt 00:00:05]}
cxd4 {[%clk 00:45:43]} {[%emt 00:00:06]} 6. cxd4 {[%clk 00:45:37]} {[%emt
00:00:04]} Nge7 {[%clk 00:45:45]} {[%emt 00:00:09]} 7. Bd3 {[%clk 00:44:45]}
{[%emt 00:01:01]} Qb6 {[%clk 00:45:19]} {[%emt 00:00:37]} 8. a3 {[%clk
00:44:00]} {[%emt 00:00:54]} Bd7 {[%clk 00:45:05]} {[%emt 00:00:24]} 9. Bc2
{[%clk 00:43:26]} {[%emt 00:00:44]} Ng6 {[%clk 00:44:33]} {[%emt 00:00:43]} 10.
Nc3 {[%clk 00:42:43]} {[%emt 00:00:52]} Be7 {[%clk 00:43:17]} {[%emt 00:01:26]}
11. Rb1 {[%clk 00:41:31]} {[%emt 00:01:22]} a5 {[%clk 00:41:50]} {[%emt
00:01:37]} 12. h4 {[%clk 00:40:00]} {[%emt 00:01:41]} O-O-O {[%clk 00:33:17]}
{[%emt 00:08:43]} 13. Na4 {[%clk 00:38:09]} {[%emt 00:02:01]} Qc7 {[%clk
00:32:17]} {[%emt 00:01:10]} 14. Bd2 {[%clk 00:36:53]} {[%emt 00:01:26]} Kb8
{[%clk 00:30:01]} {[%emt 00:02:26]} 15. b4 {[%clk 00:35:55]} {[%emt 00:01:09]}
axb4 {[%clk 00:28:59]} {[%emt 00:01:11]} 16. axb4 {[%clk 00:35:48]} {[%emt
00:00:16]} Rc8 {[%clk 00:27:40]} {[%emt 00:01:30]} 17. Bxg6 {[%clk 00:32:32]}
{[%emt 00:03:27]} hxg6 {[%clk 00:27:42]} {[%emt 00:00:07]} 18. b5 {[%clk
00:32:39]} {[%emt 00:00:03]} Na5 {[%clk 00:24:03]} {[%emt 00:03:49]} 19. Nc5
{[%clk 00:28:00]} {[%emt 00:04:50]} Nc4 {[%clk 00:21:03]} {[%emt 00:03:10]} 20.
b6 {[%clk 00:27:25]} {[%emt 00:00:44]} Qc6 {[%clk 00:19:24]} {[%emt 00:01:49]}
21. Bb4 {[%clk 00:25:55]} {[%emt 00:01:40]} Rhe8 {[%clk 00:18:12]} {[%emt
00:01:23]} 22. Nd2 {[%clk 00:18:42]} {[%emt 00:07:22]} Nxb6 {[%clk 00:17:01]}
{[%emt 00:01:21]} 23. Qb3 {[%clk 00:16:55]} {[%emt 00:01:56]} Rc7 {[%clk
00:06:36]} {[%emt 00:10:36]} 24. Ba5 {[%clk 00:14:40]} {[%emt 00:02:25]} Bxc5
{[%clk 00:06:22]} {[%emt 00:00:24]} 25. dxc5 {[%clk 00:14:42]} {[%emt
00:00:08]} Na4 {[%clk 00:06:07]} {[%emt 00:00:25]} 26. Bxc7+ {[%clk 00:13:49]}
{[%emt 00:01:03]} Qxc7 {[%clk 00:06:16]} {[%emt 00:00:02]} 27. O-O {[%clk
00:13:18]} {[%emt 00:00:41]} Bc6 {[%clk 00:05:52]} {[%emt 00:00:34]} 28. Nf3
{[%clk 00:11:49]} {[%emt 00:01:38]} Nxc5 {[%clk 00:05:51]} {[%emt 00:00:11]} 29.
Qc2 {[%clk 00:09:32]} {[%emt 00:02:26]} Nd7 {[%clk 00:05:36]} {[%emt 00:00:26]}
30. Rfc1 {[%clk 00:07:09]} {[%emt 00:02:32]} Rc8 {[%clk 00:05:05]} {[%emt
00:00:42]} 31. Qb2 {[%clk 00:06:10]} {[%emt 00:01:09]} f6 {[%clk 00:03:50]}
{[%emt 00:01:25]} 32. Nd4 {[%clk 00:03:54]} {[%emt 00:02:25]} Nxe5 {[%clk
00:03:55]} {[%emt 00:00:06]} 33. Nxe6 {[%clk 00:03:54]} {[%emt 00:00:10]} Nc4
{[%clk 00:02:07]} {[%emt 00:01:59]} 34. Rxc4 {[%clk 00:03:50]} {[%emt
00:00:14]} Qd6 {[%clk 00:01:42]} {[%emt 00:00:35]} 35. Rb4 {[%clk 00:03:45]}
{[%emt 00:00:15]} Rc7 {[%clk 00:00:42]} {[%emt 00:01:10]} 36. Nxc7 {[%clk
00:03:28]} {[%emt 00:00:26]} Qxc7 {[%clk 00:00:50]} {[%emt 00:00:02]} 37. Rb6
{[%clk 00:03:08]} {[%emt 00:00:30]} Kc8 {[%clk 00:00:43]} {[%emt 00:00:18]} 38.
Qb4 {[%clk 00:02:15]} {[%emt 00:01:02]} Kd7 {[%clk 00:00:46]} {[%emt 00:00:08]}
39. Rxb7 {[%clk 00:02:10]} {[%emt 00:00:15]} Bxb7 {[%clk 00:00:43]} {[%emt
00:00:13]} 40. Qxb7 {[%clk 00:02:17]} {[%emt 00:00:02]} Kd8 {[%clk 00:00:33]}
{[%emt 00:00:20]} 41. Qxd5+ {[%clk 00:02:21]} {[%emt 00:00:06]} Ke8 {[%clk
00:00:42]} {[%emt 00:00:01]} 42. Qg8+ {[%clk 00:02:22]} {[%emt 00:00:10]} Kd7
{[%clk 00:00:43]} {[%emt 00:00:08]} 43. Qxg7+ {[%clk 00:02:28]} {[%emt
00:00:04]} Kd8 {[%clk 00:00:47]} {[%emt 00:00:06]} 44. Qxf6+ {[%clk 00:02:25]}
{[%emt 00:00:13]} Kd7 {[%clk 00:00:43]} {[%emt 00:00:13]} 45. Qf7+ {[%clk
00:02:22]} {[%emt 00:00:14]} Kd8 {[%clk 00:00:51]} {[%emt 00:00:03]} 46. Qxc7+
{[%clk 00:02:24]} {[%emt 00:00:07]} Kxc7 {[%clk 00:00:59]} {[%emt 00:00:02]} 47.
Rd1 {[%clk 00:02:33]} {[%emt 00:00:01]} Kc6 {[%clk 00:01:07]} {[%emt 00:00:03]}
48. g4 {[%clk 00:02:41]} {[%emt 00:00:02]} Kc5 {[%clk 00:01:14]} {[%emt
00:00:02]} 49. h5 {[%clk 00:02:50]} {[%emt 00:00:02]} gxh5 {[%clk 00:01:23]}
{[%emt 00:00:01]} 50. gxh5 {[%clk 00:02:56]} {[%emt 00:00:04]} Kc6 {[%clk
00:01:31]} {[%emt 00:00:02]} 51. h6 {[%clk 00:03:05]} {[%emt 00:00:01]} Kc5
{[%clk 00:01:39]} {[%emt 00:00:02]} 52. h7 {[%clk 00:03:13]} {[%emt 00:00:02]}
Kc4 {[%clk 00:01:47]} {[%emt 00:00:01]} 53. h8=Q {[%clk 00:03:17]} {[%emt
00:00:07]} Kb4 {[%clk 00:01:53]} {[%emt 00:00:03]} 54. Rc1 {[%clk 00:03:00]}
{[%emt 00:00:28]} Kb5 {[%clk 00:02:01]} {[%emt 00:00:02]} 55. Qb8+ {[%clk
00:03:07]} {[%emt 00:00:03]} Ka4 {[%clk 00:02:09]} {[%emt 00:00:01]} 56. Ra1#
{[%clk 00:03:15]} {[%emt 00:00:02]} 1-0

[Event "FIDE U16 Olympiad_boards_81-124"]
[Site "Eindhoven, Netherlands"]
[Date "2023.08.13"]
[Round "1.27"]
[White "Govender, Keniesha"]
[Black "Boci, Mateo"]
[Result "0-1"]
[TimeControl "45min+10sec"]
[WhiteElo "1210"]
[BlackElo "1944"]

1. d4 {[%clk 00:45:18]} Nf6 {[%clk 00:45:15]} {[%emt 00:00:06]} 2. Nf3 {[%clk
00:45:26]} {[%emt 00:00:03]} e6 {[%clk 00:45:17]} {[%emt 00:00:08]} 3. g3
{[%clk 00:45:32]} {[%emt 00:00:03]} d5 {[%clk 00:45:19]} {[%emt 00:00:08]} 4.
Bg2 {[%clk 00:45:39]} {[%emt 00:00:03]} Bd6 {[%clk 00:45:21]} {[%emt 00:00:07]}
5. O-O {[%clk 00:45:42]} {[%emt 00:00:07]} O-O {[%clk 00:45:26]} {[%emt
00:00:05]} 6. c4 {[%clk 00:45:40]} {[%emt 00:00:13]} b6 {[%clk 00:43:04]}
{[%emt 00:02:33]} 7. cxd5 {[%clk 00:40:11]} {[%emt 00:05:39]} exd5 {[%clk
00:43:10]} {[%emt 00:00:03]} 8. Nc3 {[%clk 00:40:19]} {[%emt 00:00:03]} c6
{[%clk 00:41:08]} {[%emt 00:02:11]} 9. a3 {[%clk 00:28:25]} {[%emt 00:12:05]}
Bf5 {[%clk 00:40:16]} {[%emt 00:01:01]} 10. Nh4 {[%clk 00:21:42]} {[%emt
00:06:53]} Bg4 {[%clk 00:40:15]} {[%emt 00:00:11]} 11. Qc2 {[%clk 00:20:25]}
{[%emt 00:01:27]} Bh5 {[%clk 00:28:23]} {[%emt 00:12:02]} 12. Bg5 {[%clk
00:13:30]} {[%emt 00:07:06]} Be7 {[%clk 00:27:34]} {[%emt 00:00:58]} 13. Nf5
{[%clk 00:10:18]} {[%emt 00:03:22]} Bg6 {[%clk 00:27:06]} {[%emt 00:00:38]} 14.
Nxe7+ {[%clk 00:07:52]} {[%emt 00:02:36]} Qxe7 {[%clk 00:27:14]} {[%emt
00:00:03]} 15. Qd2 {[%clk 00:04:50]} {[%emt 00:03:11]} Nbd7 {[%clk 00:26:08]}
{[%emt 00:01:15]} 16. Rfe1 {[%clk 00:04:33]} {[%emt 00:00:28]} h6 {[%clk
00:24:24]} {[%emt 00:01:54]} 17. Bxf6 {[%clk 00:03:28]} {[%emt 00:01:16]} Nxf6
{[%clk 00:24:26]} {[%emt 00:00:07]} 18. f3 {[%clk 00:03:28]} {[%emt 00:00:11]}
c5 {[%clk 00:21:29]} {[%emt 00:03:06]} 19. e4 {[%clk 00:02:38]} {[%emt
00:01:00]} cxd4 {[%clk 00:21:11]} {[%emt 00:00:28]} 20. Qxd4 {[%clk 00:02:47]}
{[%emt 00:00:01]} dxe4 {[%clk 00:21:13]} {[%emt 00:00:09]} 21. Nxe4 {[%clk
00:01:57]} {[%emt 00:01:00]} Nxe4 {[%clk 00:21:17]} {[%emt 00:00:05]} 22. fxe4
{[%emt 00:00:12]} Rfd8 {[%clk 00:21:18]} 23. Qe3 {[%clk 00:01:33]} {[%emt
00:00:41]} Rac8 {[%clk 00:20:56]} {[%emt 00:00:31]} 24. Rac1 {[%clk 00:01:08]}
{[%emt 00:00:36]} Rxc1 {[%clk 00:20:23]} {[%emt 00:00:43]} 25. Rxc1 {[%clk
00:00:53]} {[%emt 00:00:25]} Qe5 {[%clk 00:20:26]} {[%emt 00:00:06]} 26. Qe2
{[%clk 00:00:32]} {[%emt 00:00:33]} Kh7 {[%clk 00:18:56]} {[%emt 00:01:40]} 27.
Re1 {[%clk 00:00:24]} {[%emt 00:00:18]} Rd4 {[%clk 00:17:49]} {[%emt 00:01:16]}
28. Qe3 {[%clk 00:00:13]} {[%emt 00:00:21]} Rd8 {[%clk 00:17:24]} {[%emt
00:00:34]} 29. Qe2 {[%emt 00:00:03]} Qg5 {[%clk 00:17:31]} {[%emt 00:00:01]} 30.
Qe3 {[%clk 00:00:19]} {[%emt 00:00:14]} Qxe3+ {[%clk 00:16:51]} {[%emt
00:00:50]} 31. Rxe3 {[%clk 00:00:28]} {[%emt 00:00:01]} Rd2 {[%clk 00:16:59]}
{[%emt 00:00:02]} 32. b3 {[%clk 00:00:13]} {[%emt 00:00:26]} a5 {[%clk
00:16:43]} {[%emt 00:00:26]} 33. Kf1 {[%clk 00:00:13]} {[%emt 00:00:10]} f6
{[%clk 00:16:38]} {[%emt 00:00:14]} 34. a4 {[%clk 00:00:13]} {[%emt 00:00:11]}
Rb2 {[%clk 00:15:49]} {[%emt 00:00:59]} 35. Rc3 {[%clk 00:00:12]} {[%emt
00:00:11]} Bf7 {[%clk 00:15:50]} {[%emt 00:00:08]} 36. Re3 {[%clk 00:00:15]}
{[%emt 00:00:07]} Rxb3 {[%clk 00:15:44]} {[%emt 00:00:16]} 37. Re2 {[%clk
00:00:24]} {[%emt 00:00:01]} Bc4 {[%clk 00:15:53]} {[%emt 00:00:01]} 0-1

[Event "FIDE U16 Olympiad_boards_81-124"]
[Site "Eindhoven, Netherlands"]
[Date "2023.08.13"]
[Round "1.28"]
[White "Omeri, Eklea"]
[Black "Matshego, Thato"]
[Result "1-0"]
[TimeControl "45min+10sec"]
[WhiteElo "1746"]
[BlackElo "1150"]

1. d4 {[%clk 00:45:18]} {[%emt 00:00:02]} d5 {[%clk 00:45:12]} {[%emt
00:00:08]} 2. c4 {[%clk 00:45:26]} {[%emt 00:00:02]} c6 {[%clk 00:45:20]}
{[%emt 00:00:03]} 3. Nc3 {[%clk 00:45:34]} {[%emt 00:00:01]} Nf6 {[%clk
00:45:22]} {[%emt 00:00:08]} 4. Nf3 {[%clk 00:45:42]} {[%emt 00:00:02]} dxc4
{[%clk 00:45:17]} {[%emt 00:00:15]} 5. a4 {[%clk 00:45:48]} {[%emt 00:00:04]}
Bf5 {[%clk 00:45:24]} {[%emt 00:00:03]} 6. e3 {[%clk 00:42:54]} {[%emt
00:03:04]} e6 {[%clk 00:45:31]} {[%emt 00:00:03]} 7. Bxc4 {[%clk 00:42:58]}
{[%emt 00:00:06]} Bb4 {[%clk 00:44:21]} {[%emt 00:01:19]} 8. Qb3 {[%clk
00:39:25]} {[%emt 00:03:44]} a5 {[%emt 00:01:08]} 9. O-O {[%clk 00:39:06]}
{[%emt 00:00:01]} O-O {[%clk 00:43:43]} {[%emt 00:00:18]} 10. Na2 {[%clk
00:35:01]} {[%emt 00:04:15]} Qe7 {[%clk 00:42:32]} {[%emt 00:01:21]} 11. Nxb4
{[%clk 00:34:53]} {[%emt 00:00:18]} axb4 {[%clk 00:42:08]} {[%emt 00:00:34]} 12.
Bd2 {[%clk 00:34:51]} {[%emt 00:00:11]} c5 {[%clk 00:36:24]} {[%emt 00:05:54]}
13. dxc5 {[%clk 00:33:45]} {[%emt 00:01:17]} Qxc5 {[%clk 00:35:32]} {[%emt
00:01:02]} 14. Bxb4 {[%clk 00:33:42]} {[%emt 00:00:13]} Bc2 {[%clk 00:34:56]}
{[%emt 00:00:44]} 15. Bxc5 {[%clk 00:33:26]} {[%emt 00:00:27]} Bxb3 {[%clk
00:34:48]} {[%emt 00:00:20]} 16. Bxb3 {[%clk 00:33:34]} {[%emt 00:00:01]} Rc8
{[%clk 00:34:44]} {[%emt 00:00:14]} 17. Rac1 {[%clk 00:33:06]} {[%emt
00:00:37]} Nc6 {[%clk 00:34:27]} {[%emt 00:00:28]} 18. Nd4 {[%clk 00:32:33]}
{[%emt 00:00:43]} Ne5 {[%clk 00:34:12]} {[%emt 00:00:24]} 19. Ba3 {[%clk
00:32:14]} {[%emt 00:00:30]} Ne4 {[%clk 00:33:18]} {[%emt 00:01:04]} 20. Rxc8+
{[%clk 00:32:10]} {[%emt 00:00:14]} Rxc8 {[%clk 00:33:27]} {[%emt 00:00:02]} 21.
Rd1 {[%clk 00:31:50]} {[%emt 00:00:28]} h6 {[%clk 00:32:53]} {[%emt 00:00:44]}
22. Nxe6 {[%clk 00:30:57]} {[%emt 00:01:04]} Nc4 {[%clk 00:31:25]} {[%emt
00:01:38]} 23. Bxc4 {[%clk 00:30:08]} {[%emt 00:00:59]} Rxc4 {[%clk 00:31:29]}
{[%emt 00:00:06]} 24. Nd4 {[%clk 00:29:28]} {[%emt 00:00:50]} Rxa4 {[%clk
00:30:55]} {[%emt 00:00:45]} 25. f3 {[%clk 00:29:23]} {[%emt 00:00:14]} Nc3
{[%clk 00:29:19]} {[%emt 00:01:46]} 26. bxc3 {[%clk 00:28:58]} {[%emt
00:00:35]} Rxa3 {[%clk 00:29:26]} {[%emt 00:00:02]} 27. Rc1 {[%clk 00:28:34]}
{[%emt 00:00:35]} Kf8 {[%clk 00:29:25]} {[%emt 00:00:11]} 28. Kf2 {[%clk
00:28:36]} {[%emt 00:00:08]} Ke7 {[%clk 00:29:23]} {[%emt 00:00:12]} 29. Ke2
{[%clk 00:28:45]} {[%emt 00:00:01]} Ra2+ {[%clk 00:28:53]} {[%emt 00:00:40]} 30.
Rc2 {[%clk 00:28:53]} {[%emt 00:00:02]} Ra3 {[%clk 00:28:54]} {[%emt 00:00:08]}
31. Kd3 {[%clk 00:28:59]} {[%emt 00:00:05]} Kf6 {[%clk 00:27:59]} {[%emt
00:01:03]} 32. Rb2 {[%clk 00:29:06]} {[%emt 00:00:05]} Ra6 {[%clk 00:26:23]}
{[%emt 00:01:46]} 33. Rxb7 {[%clk 00:29:13]} {[%emt 00:00:04]} Ra2 {[%clk
00:26:29]} {[%emt 00:00:03]} 34. Rb6+ {[%clk 00:29:17]} {[%emt 00:00:07]} Kg5
{[%clk 00:26:06]} {[%emt 00:00:32]} 35. Ne2 {[%clk 00:29:15]} {[%emt 00:00:13]}
Ra1 {[%clk 00:25:58]} {[%emt 00:00:15]} 36. g3 {[%clk 00:28:29]} {[%emt
00:00:58]} f6 {[%clk 00:25:48]} {[%emt 00:00:19]} 37. Nf4 {[%clk 00:28:27]}
{[%emt 00:00:13]} Ra5 {[%clk 00:25:09]} {[%emt 00:00:48]} 38. h4+ {[%clk
00:28:24]} {[%emt 00:00:14]} Kf5 {[%clk 00:25:08]} {[%emt 00:00:11]} 39. e4+
{[%clk 00:28:33]} 1-0